fUST/lending_fUST_20240307
["ID","MTS","AMOUNT","RATE_DAILY","PERIOD"]
[317348187,1709754645218,-151.0,0.0002493,2]
[317348188,1709754645229,-151.0,0.0002493,2]
[317348189,1709754645239,-151.0,0.0002493,2]
[317348190,1709754645250,-151.0,0.0002493,2]
[317348191,1709754645261,-151.0,0.0002493,2]
[317348192,1709754645272,-151.0,0.0002493,2]
[317348193,1709754645283,-151.0,0.0002493,2]
[317348194,1709754645293,-151.0,0.0002493,2]
[317348195,1709754645304,-151.0,0.0002493,2]
[317348196,1709754645314,-153.0,0.00024932,2]
[317348197,1709754645325,-1135.0,0.00024932,2]
[317348198,1709754645336,-2763049.04054357,0.00024936,30]
[317348199,1709754645403,-302.61772616,0.00024936,30]
[317348220,1709754646798,-243809.69137445,0.00024936,30]
[317348347,1709755839543,-682.18594777,0.00021043,2]
[317348348,1709755839553,-781.92972777,0.00021044,2]
[317348349,1709755839562,-168.20848489,0.0002105,2]
[317348350,1709755839572,-2325.7599352,0.00021052,2]
[317348351,1709755839581,-150.0,0.00021148,2]
[317348352,1709755839590,-20493.48050387,0.00021149,2]
[317348353,1709755839599,-23062.336889,0.0002115,2]
[317348354,1709755839608,-154.86062544,0.00022,2]
[317348356,1709755839619,-323.10499161,0.00022441,2]
[317348358,1709755839628,-605.75567507,0.00022836,2]
[317348360,1709755839637,-1270.38666448,0.00023,2]
[317348362,1709755839648,-200.0,0.000231,2]
[317348364,1709755839657,-15676.01549571,0.00023301,2]
[317348366,1709755839666,-1603.02262445,0.00023301,2]
[317348368,1709755839676,-2301.03578837,0.00023332,3]
[317348369,1709755839685,-300.0,0.000239,11]
[317348370,1709755839694,-149.999999,0.00024,2]
[317348371,1709755839704,-1539.80622913,0.00024,2]
[317348372,1709755839714,-208.83797519,0.00024,2]
[317348373,1709755839724,-372.1502476,0.0002411,2]
[317348374,1709755839734,-153.0,0.00024178,2]
[317348375,1709755839743,-8241.44159152,0.00024423,2]
[317348376,1709755839752,-5000.0,0.00024424,2]
[317348377,1709755839760,-298.26,0.00024647,3]
[317348378,1709755839769,-500.0,0.00024656,2]
[317348379,1709755839778,-618.04104218,0.00024656,2]
[317348380,1709755839787,-184.5,0.00024656,2]
[317348381,1709755839796,-273.06499348,0.00024656,2]
[317348382,1709755839805,-388.67893687,0.00024656,2]
[317348383,1709755839815,-500.0,0.00024656,2]
[317348384,1709755839824,-442.27772901,0.00024656,2]
[317348385,1709755839833,-500.0,0.00024657,2]
[317348386,1709755839842,-500.0,0.00024657,2]
[317348387,1709755839851,-500.0,0.00024657,2]
[317348388,1709755839861,-500.0,0.00024657,2]
[317348389,1709755839871,-500.0,0.00024657,2]
[317348390,1709755839879,-500.0,0.00024657,2]
[317348391,1709755839889,-503.4401283,0.00024657,2]
[317348393,1709755839898,-500.0,0.00024657,2]
[317348395,1709755839907,-500.0,0.00024657,2]
[317348397,1709755839916,-500.0,0.00024657,2]
[317348398,1709755839926,-500.0,0.00024657,2]
[317348399,1709755839935,-506.41938098,0.00024657,2]
[317348400,1709755839946,-500.0,0.00024657,2]
[317348401,1709755839956,-500.0,0.00024657,2]
[317348403,1709755839965,-505.14802362,0.00024657,2]
[317348405,1709755839974,-500.0,0.00024657,2]
[317348406,1709755839983,-500.0,0.00024657,2]
[317348408,1709755839992,-500.0,0.00024657,2]
[317348409,1709755840001,-500.0,0.00024657,2]
[317348410,1709755840010,-4980.07,0.00024657,2]
[317348411,1709755840020,-4980.07,0.00024657,2]
[317348412,1709755840029,-4980.07,0.00024657,2]
[317348414,1709755840038,-500.0,0.00024657,2]
[317348415,1709755840048,-1747.92,0.00024657,2]
[317348416,1709755840146,-1747.92,0.00024657,2]
[317348417,1709755840159,-1747.92,0.00024657,2]
[317348418,1709755840168,-500.0,0.00024657,2]
[317348419,1709755840177,-500.0,0.00024657,2]
[317348420,1709755840186,-500.0,0.00024657,2]
[317348421,1709755840195,-627.9498426,0.00024657,2]
[317348422,1709755840205,-500.0,0.00024657,2]
[317348423,1709755840214,-500.0,0.00024657,2]
[317348424,1709755840223,-500.0,0.00024657,2]
[317348425,1709755840232,-500.0,0.00024657,2]
[317348426,1709755840241,-500.0,0.00024657,2]
[317348427,1709755840250,-500.0,0.00024657,2]
[317348428,1709755840259,-500.0,0.00024657,2]
[317348429,1709755840269,-500.0,0.00024657,2]
[317348430,1709755840277,-622.75,0.00024657,2]
[317348431,1709755840287,-500.0,0.00024657,2]
[317348432,1709755840296,-500.0,0.00024657,2]
[317348433,1709755840305,-500.0,0.00024657,2]
[317348434,1709755840314,-500.0,0.00024657,2]
[317348435,1709755840323,-500.0,0.00024657,2]
[317348436,1709755840332,-500.0,0.00024657,2]
[317348437,1709755840342,-453.06,0.00024657,2]
[317348438,1709755840352,-500.0,0.00024657,2]
[317348439,1709755840362,-500.0,0.00024657,2]
[317348440,1709755840371,-500.0,0.00024657,2]
[317348441,1709755840380,-2553.44,0.00024657,2]
[317348442,1709755840390,-2553.44,0.00024657,2]
[317348443,1709755840399,-2553.44,0.00024657,2]
[317348444,1709755840408,-2553.44,0.00024657,2]
[317348445,1709755840421,-602.82051049,0.00024657,2]
[317348446,1709755840431,-2777.43,0.00024657,2]
[317348447,1709755840440,-2777.43,0.00024657,2]
[317348448,1709755840450,-2777.43,0.00024657,2]
[317348449,1709755840460,-500.0,0.00024657,2]
[317348450,1709755840470,-530.8993804,0.00024657,2]
[317348451,1709755840479,-500.0,0.00024657,2]
[317348452,1709755840488,-500.0,0.00024657,2]
[317348453,1709755840498,-500.0,0.00024657,2]
[317348454,1709755840508,-1606.01,0.00024657,2]
[317348455,1709755840518,-1606.01,0.00024657,2]
[317348456,1709755840527,-1606.01,0.00024657,2]
[317348457,1709755840537,-500.0,0.00024657,2]
[317348458,1709755840546,-500.0,0.00024657,2]
[317348459,1709755840555,-500.0,0.00024657,2]
[317348460,1709755840565,-500.0,0.00024657,2]
[317348461,1709755840574,-308.80024834,0.00024657,2]
[317348462,1709755840583,-500.0,0.00024657,2]
[317348463,1709755840592,-500.0,0.00024657,2]
[317348464,1709755840602,-500.0,0.00024657,2]
[317348465,1709755840613,-500.0,0.00024657,2]
[317348466,1709755840621,-399.63608693,0.00024657,2]
[317348467,1709755840630,-503.6428911,0.00024657,2]
[317348468,1709755840639,-500.0,0.00024657,2]
[317348469,1709755840649,-500.0,0.00024657,2]
[317348470,1709755840658,-500.0,0.00024657,2]
[317348471,1709755840667,-500.0,0.00024657,2]
[317348472,1709755840678,-500.0,0.00024657,2]
[317348473,1709755840688,-500.0,0.00024657,2]
[317348474,1709755840698,-517.07724007,0.00024657,2]
[317348475,1709755840707,-500.0,0.00024657,2]
[317348476,1709755840717,-500.0,0.00024657,2]
[317348477,1709755840726,-500.0,0.00024657,2]
[317348478,1709755840736,-500.0,0.00024657,2]
[317348479,1709755840746,-500.0,0.00024657,2]
[317348480,1709755840755,-380.0,0.00024658,2]
[317348481,1709755840764,-196.23222196,0.00024704,2]
[317348483,1709755840773,-196.23222196,0.00024768,2]
[317348484,1709755840782,-4980.07,0.00024798,2]
[317348486,1709755840792,-500.0,0.00024798,2]
[317348488,1709755840800,-2777.43,0.00024798,2]
[317348490,1709755840809,-1606.01,0.00024798,2]
[317348491,1709755840818,-500.0,0.00024799,2]
[317348492,1709755840827,-1747.92,0.00024799,2]
[317348493,1709755840837,-500.0,0.00024799,2]
[317348494,1709755840846,-500.0,0.00024799,2]
[317348495,1709755840856,-225.96401229,0.00024799,2]
[317348496,1709755840868,-2553.44,0.00024799,2]
[317348497,1709755840877,-500.0,0.00024799,2]
[317348498,1709755840886,-500.0,0.00024799,2]
[317348499,1709755840895,-23251.19443145,0.000248,2]
[317348500,1709755840905,-4980.07,0.00024804,2]
[317348501,1709755840914,-500.0,0.00024804,2]
[317348502,1709755840923,-500.0,0.00024804,2]
[317348503,1709755840932,-2553.44,0.00024804,2]
[317348504,1709755840942,-2777.43,0.00024804,2]
[317348505,1709755840951,-1606.01,0.00024804,2]
[317348506,1709755840960,-500.0,0.00024804,2]
[317348507,1709755840970,-30000.0,0.00024805,5]
[317348508,1709755840980,-196.23222196,0.00024831,2]
[317348509,1709755840989,-168.20848489,0.00024831,2]
[317348510,1709755840998,-1000.0,0.00024858,7]
[317348511,1709755841007,-500.0,0.00024925,2]
[317348512,1709755841016,-1747.92,0.00024925,2]
[317348513,1709755841025,-500.0,0.00024925,2]
[317348514,1709755841035,-500.0,0.00024925,2]
[317348515,1709755841044,-875.00993996,0.00024926,2]
[317348516,1709755841053,-4980.07,0.00024927,2]
[317348517,1709755841063,-500.0,0.00024927,2]
[317348518,1709755841073,-2777.43,0.00024927,2]
[317348519,1709755841082,-1606.01,0.00024927,2]
[317348520,1709755841091,-500.0,0.00024928,2]
[317348521,1709755841100,-2553.44,0.00024928,2]
[317348522,1709755841110,-500.0,0.00024928,2]
[317348523,1709755841122,-500.0,0.00024929,2]
[317348524,1709755841131,-4980.07,0.00024929,2]
[317348525,1709755841140,-4980.07,0.00024929,2]
[317348526,1709755841149,-4980.07,0.00024929,2]
[317348527,1709755841158,-4980.07,0.00024929,2]
[317348528,1709755841167,-4980.07,0.00024929,2]
[317348529,1709755841177,-1747.92,0.00024929,2]
[317348530,1709755841186,-500.0,0.00024929,2]
[317348531,1709755841195,-500.0,0.00024929,2]
[317348532,1709755841204,-500.0,0.00024929,2]
[317348533,1709755841213,-500.0,0.00024929,2]
[317348534,1709755841222,-500.0,0.00024929,2]
[317348535,1709755841232,-500.0,0.00024929,2]
[317348536,1709755841243,-500.0,0.00024929,2]
[317348537,1709755841252,-500.0,0.00024929,2]
[317348538,1709755841261,-500.0,0.00024929,2]
[317348539,1709755841271,-244.20662702,0.00024929,2]
[317348540,1709755841280,-500.0,0.00024929,2]
[317348541,1709755841290,-2553.44,0.00024929,2]
[317348542,1709755841298,-2553.44,0.00024929,2]
[317348543,1709755841308,-2553.44,0.00024929,2]
[317348544,1709755841318,-2553.44,0.00024929,2]
[317348545,1709755841328,-2553.44,0.00024929,2]
[317348546,1709755841338,-2777.43,0.00024929,2]
[317348547,1709755841348,-2777.43,0.00024929,2]
[317348548,1709755841357,-2777.43,0.00024929,2]
[317348549,1709755841369,-2777.43,0.00024929,2]
[317348550,1709755841378,-2777.43,0.00024929,2]
[317348551,1709755841387,-500.0,0.00024929,2]
[317348552,1709755841396,-1606.01,0.00024929,2]
[317348553,1709755841406,-1606.01,0.00024929,2]
[317348554,1709755841415,-1606.01,0.00024929,2]
[317348555,1709755841427,-1606.01,0.00024929,2]
[317348556,1709755841436,-1606.01,0.00024929,2]
[317348557,1709755841445,-197.87242991,0.00024929,2]
[317348558,1709755841456,-567.1268785,0.00024929,2]
[317348559,1709755841466,-151.0,0.0002493,2]
[317348560,1709755841476,-151.0,0.0002493,2]
[317348561,1709755841485,-151.0,0.0002493,2]
[317348562,1709755841495,-151.0,0.0002493,2]
[317348563,1709755841504,-151.0,0.0002493,2]
[317348564,1709755841514,-151.0,0.0002493,2]
[317348565,1709755841523,-151.0,0.0002493,2]
[317348566,1709755841532,-151.0,0.0002493,2]
[317348567,1709755841541,-151.0,0.0002493,2]
[317348568,1709755841550,-151.0,0.0002493,2]
[317348569,1709755841559,-151.0,0.0002493,2]
[317348570,1709755841568,-151.0,0.0002493,2]
[317348571,1709755841577,-151.0,0.0002493,2]
[317348572,1709755841586,-151.0,0.0002493,2]
[317348573,1709755841595,-151.0,0.0002493,2]
[317348574,1709755841605,-151.0,0.0002493,2]
[317348575,1709755841615,-500.0,0.0002493,2]
[317348576,1709755841624,-386.0555957,0.0002493,2]
[317348577,1709755841633,-4980.07,0.0002493,2]
[317348578,1709755841643,-4980.07,0.0002493,2]
[317348579,1709755841652,-4980.07,0.0002493,2]
[317348580,1709755841661,-4980.07,0.0002493,2]
[317348581,1709755841670,-4980.07,0.0002493,2]
[317348582,1709755841680,-1747.92,0.0002493,2]
[317348583,1709755841689,-1747.92,0.0002493,2]
[317348584,1709755841698,-4980.07,0.0002493,2]
[317348585,1709755841708,-1747.92,0.0002493,2]
[317348586,1709755841717,-4980.07,0.0002493,2]
[317348587,1709755841726,-1747.92,0.0002493,2]
[317348588,1709755841735,-4980.07,0.0002493,2]
[317348589,1709755841745,-1747.92,0.0002493,2]
[317348590,1709755841754,-4980.07,0.0002493,2]
[317348591,1709755841763,-4980.07,0.0002493,2]
[317348592,1709755841772,-1747.92,0.0002493,2]
[317348593,1709755841781,-4980.07,0.0002493,2]
[317348594,1709755841790,-1747.92,0.0002493,2]
[317348595,1709755841799,-4980.07,0.0002493,2]
[317348596,1709755841808,-1747.92,0.0002493,2]
[317348597,1709755841817,-4980.18967491,0.0002493,2]
[317348598,1709755841827,-1747.92,0.0002493,2]
[317348599,1709755841836,-1747.92,0.0002493,2]
[317348600,1709755841844,-1747.92,0.0002493,2]
[317348601,1709755841853,-1747.92,0.0002493,2]
[317348602,1709755841862,-1747.92,0.0002493,2]
[317348603,1709755841871,-1747.92,0.0002493,2]
[317348604,1709755841880,-1747.92,0.0002493,2]
[317348605,1709755841889,-1747.92,0.0002493,2]
[317348606,1709755841898,-1747.92,0.0002493,2]
[317348607,1709755841907,-1748.06610393,0.0002493,2]
[317348608,1709755841916,-500.0,0.0002493,2]
[317348609,1709755841926,-500.0,0.0002493,2]
[317348610,1709755841934,-500.0,0.0002493,2]
[317348611,1709755841944,-500.0,0.0002493,2]
[317348612,1709755841953,-500.0,0.0002493,2]
[317348613,1709755841963,-500.0,0.0002493,2]
[317348614,1709755841974,-500.0,0.0002493,2]
[317348615,1709755841984,-500.0,0.0002493,2]
[317348616,1709755841993,-500.0,0.0002493,2]
[317348617,1709755842002,-450.02,0.0002493,2]
[317348618,1709755842011,-500.0,0.0002493,2]
[317348619,1709755842020,-155.08362612,0.0002493,2]
[317348620,1709755842029,-2553.44,0.0002493,2]
[317348621,1709755842038,-2553.44,0.0002493,2]
[317348622,1709755842046,-2553.44,0.0002493,2]
[317348623,1709755842056,-2553.44,0.0002493,2]
[317348624,1709755842065,-2553.44,0.0002493,2]
[317348625,1709755842074,-2553.44,0.0002493,2]
[317348626,1709755842083,-2553.44,0.0002493,2]
[317348627,1709755842092,-2553.44,0.0002493,2]
[317348628,1709755842101,-2553.44,0.0002493,2]
[317348629,1709755842111,-2553.44,0.0002493,2]
[317348630,1709755842122,-2553.44,0.0002493,2]
[317348631,1709755842132,-2553.61314312,0.0002493,2]
[317348632,1709755842141,-2777.43,0.0002493,2]
[317348633,1709755842150,-2777.43,0.0002493,2]
[317348634,1709755842159,-2777.43,0.0002493,2]
[317348635,1709755842168,-2777.43,0.0002493,2]
[317348636,1709755842177,-2777.43,0.0002493,2]
[317348637,1709755842186,-2777.43,0.0002493,2]
[317348638,1709755842195,-2777.43,0.0002493,2]
[317348639,1709755842205,-2777.43,0.0002493,2]
[317348640,1709755842214,-2777.43,0.0002493,2]
[317348641,1709755842224,-2777.43,0.0002493,2]
[317348642,1709755842234,-2777.43,0.0002493,2]
[317348643,1709755842243,-2777.43,0.0002493,2]
[317348644,1709755842253,-2777.48130956,0.0002493,2]
[317348645,1709755842262,-450.20807686,0.0002493,2]
[317348646,1709755842272,-1606.01,0.0002493,2]
[317348647,1709755842281,-1606.01,0.0002493,2]
[317348648,1709755842290,-1606.01,0.0002493,2]
[317348649,1709755842299,-1606.01,0.0002493,2]
[317348650,1709755842308,-1606.01,0.0002493,2]
[317348651,1709755842317,-1606.01,0.0002493,2]
[317348652,1709755842326,-1606.01,0.0002493,2]
[317348653,1709755842335,-1606.01,0.0002493,2]
[317348654,1709755842344,-1606.01,0.0002493,2]
[317348655,1709755842354,-1606.01,0.0002493,2]
[317348656,1709755842364,-1606.01,0.0002493,2]
[317348657,1709755842375,-1606.01,0.0002493,2]
[317348658,1709755842384,-1606.05709663,0.0002493,2]
[317348659,1709755842394,-316992.9780115,0.00024931,30]
[317348660,1709755842403,-33951.68,0.00024931,30]
[317348661,1709755842413,-3793.42587128,0.00024931,30]
[317348662,1709755842426,-87235.59191064,0.00024931,2]
[317348663,1709755842511,-122684.91841244,0.00024931,2]
[317348664,1709755842521,-775.15130685,0.00024931,2]
[317348665,1709755842530,-1181.42213623,0.00024931,14]
[317348666,1709755842539,-222.51269772,0.00024931,10]
[317348667,1709755842549,-284.17896166,0.00024931,2]
[317348668,1709755842558,-4055.01477224,0.00024931,2]
[317348669,1709755842567,-313.00484264,0.00024931,2]
[317348670,1709755842577,-278.91336838,0.00024931,2]
[317348671,1709755842586,-100125.29359741,0.00024931,2]
[317348672,1709755842596,-18852.94036261,0.00024931,2]
[317348673,1709755842605,-9862.23180686,0.00024931,2]
[317348674,1709755842616,-150.81129342,0.00024931,2]
[317348675,1709755842626,-1011.38805868,0.00024931,10]
[317348676,1709755842635,-175.5,0.00024931,30]
[317348677,1709755842645,-2963.47566326,0.00024931,2]
[317348678,1709755842655,-1041.22569187,0.00024931,30]
[317348679,1709755842664,-20000.0,0.00024931,2]
[317348680,1709755842675,-11964.0,0.00024931,2]
[317348681,1709755842685,-150.0,0.00024931,2]
[317348682,1709755842694,-5432.35455843,0.00024931,30]
[317348683,1709755842703,-2460.64400351,0.00024931,2]
[317348684,1709755842713,-1907581.32687918,0.00024931,60]
[317348685,1709755842754,-34463.59576813,0.00024931,60]
[317348700,1709755843392,-2449.44061542,0.00024931,60]
[317348711,1709755846340,-3361.25,0.00024931,60]
[317348715,1709756791163,-155.28990243,0.00021465,2]
[317348719,1709756966104,-595.87918362,0.00019357,2]
[317348720,1709756966124,-1577.48485433,0.00019358,2]
[317348721,1709756966152,-781.92972777,0.00019358,2]
[317348722,1709756967106,-783.10305575,0.00019358,2]
[317348723,1709756967128,-320.79134332,0.00019358,2]
[317348724,1709756967149,-21.13032998,0.00019358,2]
[317348725,1709756967179,-301.97466163,0.00019358,2]
[317348726,1709756967201,-703.5775733,0.00019359,2]
[317348727,1709756967223,-519.3260583,0.00019365,2]
[317348728,1709756967244,-682.18594777,0.00020322,2]
[317348729,1709756967266,-175.216366,0.00020323,2]
[317348730,1709756967288,-250.0,0.00020362,2]
[317348731,1709756967308,-216.3337696,0.00020602,2]
[317348732,1709756967328,-168.20848489,0.00021367,2]
[317348733,1709756967352,-411.69428433,0.0002145,2]
[317348734,1709756967373,-524.19922548,0.00021469,2]
[317348735,1709756967393,-233.3633315,0.00021472,2]
[317348736,1709756970139,704.4497601,0.00021815,2]
[317348737,1709757018891,989.41938649,0.00021845,2]
[317348767,1709757031989,-8267.85188578,0.00021845,2]
[317348774,1709757032055,-15642.72872773,0.00021845,2]
[317348775,1709757032064,-1135.0,0.00022,2]
[317348777,1709757032073,-20493.48050387,0.00022088,2]
[317348779,1709757032083,-7443.8365072,0.00022089,2]
[317348781,1709757032092,-1135.0,0.00022192,2]
[317348783,1709757032101,-222.57078199,0.00022436,2]
[317348785,1709757032110,-1135.0,0.00022466,2]
[317348787,1709757032119,-1135.0,0.0002274,2]
[317348788,1709757032129,-1135.0,0.00023014,2]
[317348790,1709757032138,-1135.0,0.00023014,2]
[317348792,1709757032146,-1135.0,0.00023288,2]
[317348794,1709757032155,-11921.0926707,0.00023309,2]
[317348795,1709757032164,-6809.9997434,0.00023314,2]
[317348797,1709757032175,-9051.54413919,0.00023314,2]
[317348813,1709757039154,-1681.12853433,0.00023314,2]
[317348814,1709757039169,-8774.97674778,0.00023314,2]
[317348815,1709757039178,-30412.66207832,0.00023317,2]
[317348816,1709757039187,-1623.06213686,0.00023319,2]
[317348817,1709757039196,-189.09002233,0.00023351,2]
[317348818,1709757039205,-319.37682746,0.00023351,2]
[317348819,1709757039214,-596.85978617,0.00023351,3]
[317348820,1709757039223,-766.93024014,0.00023351,3]
[317348821,1709757039232,-487.72854305,0.00023351,3]
[317348822,1709757039241,-176.78838189,0.00023351,2]
[317348823,1709757039251,-164.35969917,0.00023351,2]
[317348824,1709757039356,-150.0,0.00023923,2]
[317348825,1709757039366,-1135.0,0.00023934,2]
[317348826,1709757039375,-441.7994775,0.00023978,2]
[317348827,1709757039384,-208.83797519,0.00024163,2]
[317348828,1709757039393,-1154.0,0.00024164,2]
[317348829,1709757039402,-257.7570699,0.00024178,2]
[317348830,1709757039411,-405.0908022,0.00024178,2]
[317348831,1709757039421,-519.3260583,0.00024365,2]
[317348832,1709757039430,-8241.44159152,0.00024427,2]
[317348833,1709757039440,-5000.0,0.00024428,2]
[317348834,1709757039449,-5000.0,0.0002443,2]
[317348835,1709757039458,-5000.0,0.0002443,2]
[317348836,1709757039467,-500.0,0.00024657,2]
[317348837,1709757039476,-500.0,0.00024657,2]
[317348838,1709757039485,-500.0,0.00024657,2]
[317348839,1709757039494,-450.20807686,0.00024657,2]
[317348840,1709757039503,-501.72676777,0.00024657,2]
[317348841,1709757039512,-342.22831957,0.00024657,2]
[317348842,1709757039521,-500.0,0.00024657,2]
[317348843,1709757039530,-500.0,0.00024657,2]
[317348844,1709757039540,-500.0,0.00024657,2]
[317348845,1709757039549,-501.49627826,0.00024657,2]
[317348846,1709757039560,-209.87178841,0.00024657,2]
[317348847,1709757039568,-500.0,0.00024657,2]
[317348848,1709757039577,-500.0,0.00024657,2]
[317348849,1709757039586,-500.0,0.00024657,2]
[317348850,1709757039596,-500.0,0.00024657,2]
[317348851,1709757039605,-500.0,0.00024657,2]
[317348852,1709757039615,-500.0,0.00024657,2]
[317348853,1709757039624,-500.0,0.00024657,2]
[317348854,1709757039633,-500.0,0.00024657,2]
[317348855,1709757039643,-500.0,0.00024657,2]
[317348856,1709757039652,-500.0,0.00024657,2]
[317348857,1709757039661,-302.34858135,0.00024657,2]
[317348858,1709757039670,-500.0,0.00024657,2]
[317348859,1709757039679,-500.0,0.00024657,2]
[317348860,1709757039689,-500.0,0.00024657,2]
[317348861,1709757039698,-500.0,0.00024657,2]
[317348862,1709757039706,-500.0,0.00024657,2]
[317348863,1709757039715,-500.0,0.00024657,2]
[317348864,1709757039725,-500.0,0.00024657,2]
[317348865,1709757039734,-500.0,0.00024657,2]
[317348866,1709757039743,-500.0,0.00024657,2]
[317348867,1709757039752,-500.0,0.00024657,2]
[317348868,1709757039761,-500.0,0.00024657,2]
[317348869,1709757039771,-319.53164777,0.00024657,2]
[317348870,1709757039780,-500.0,0.00024657,2]
[317348871,1709757039789,-500.0,0.00024657,2]
[317348872,1709757039798,-500.0,0.00024657,2]
[317348873,1709757039810,-500.0,0.00024657,2]
[317348874,1709757039822,-333.54720631,0.00024657,2]
[317348875,1709757039831,-500.0,0.00024657,2]
[317348876,1709757039840,-500.0,0.00024657,2]
[317348877,1709757039850,-500.0,0.00024657,2]
[317348878,1709757039859,-500.0,0.00024657,2]
[317348879,1709757039869,-500.0,0.00024657,2]
[317348880,1709757039878,-1024.87,0.00024657,2]
[317348881,1709757039887,-500.0,0.00024657,2]
[317348882,1709757039897,-594.74188787,0.00024657,2]
[317348883,1709757039907,-500.0,0.00024657,2]
[317348884,1709757039916,-267.94492904,0.00024657,2]
[317348885,1709757039925,-500.0,0.00024657,2]
[317348886,1709757039934,-500.0,0.00024657,2]
[317348887,1709757039943,-500.0,0.00024657,2]
[317348888,1709757039952,-209.13471779,0.00024657,2]
[317348889,1709757039960,-500.0,0.00024657,2]
[317348890,1709757039969,-500.0,0.00024657,2]
[317348891,1709757039978,-500.0,0.00024657,2]
[317348892,1709757039988,-5944.35,0.00024657,2]
[317348893,1709757039997,-5944.35,0.00024657,2]
[317348894,1709757040006,-608.33482919,0.00024657,2]
[317348895,1709757040015,-165.88167576,0.00024657,2]
[317348896,1709757040024,-500.0,0.00024657,2]
[317348897,1709757040033,-500.0,0.00024657,2]
[317348898,1709757040042,-2403.39,0.00024657,2]
[317348900,1709757040053,-500.0,0.00024657,2]
[317348902,1709757040061,-500.0,0.00024657,2]
[317348904,1709757040070,-500.0,0.00024657,2]
[317348905,1709757040080,-500.0,0.00024657,2]
[317348906,1709757040089,-480.04806816,0.00024657,2]
[317348907,1709757040098,-592.2955999,0.00024657,2]
[317348908,1709757040108,-503.4401283,0.00024657,2]
[317348910,1709757040117,-500.0,0.00024657,2]
[317348912,1709757040127,-500.0,0.00024657,2]
[317348914,1709757040136,-500.0,0.00024657,2]
[317348916,1709757040146,-500.0,0.00024657,2]
[317348918,1709757040155,-504.34415218,0.00024657,2]
[317348919,1709757040163,-500.0,0.00024657,2]
[317348920,1709757040173,-500.0,0.00024657,2]
[317348921,1709757040182,-500.0,0.00024657,2]
[317348922,1709757040191,-500.0,0.00024657,2]
[317348923,1709757040202,-500.0,0.00024657,2]
[317348924,1709757040211,-500.0,0.00024657,2]
[317348925,1709757040221,-1744.61,0.00024657,2]
[317348926,1709757040230,-500.0,0.00024657,2]
[317348927,1709757040240,-1744.61,0.00024657,2]
[317348928,1709757040249,-500.0,0.00024657,2]
[317348929,1709757040259,-500.0,0.00024657,2]
[317348930,1709757040268,-500.0,0.00024657,2]
[317348931,1709757040277,-500.0,0.00024657,2]
[317348932,1709757040285,-500.0,0.00024657,2]
[317348933,1709757040295,-500.0,0.00024657,2]
[317348934,1709757040305,-358.88533961,0.00024657,2]
[317348935,1709757040314,-500.0,0.00024657,2]
[317348936,1709757040323,-500.0,0.00024657,2]
[317348937,1709757040332,-500.0,0.00024657,2]
[317348938,1709757040341,-500.0,0.00024657,2]
[317348939,1709757040350,-500.0,0.00024657,2]
[317348940,1709757040360,-500.0,0.00024657,2]
[317348941,1709757040369,-2545.97,0.00024657,2]
[317348942,1709757040379,-2545.97,0.00024657,2]
[317348943,1709757040389,-500.0,0.00024657,2]
[317348944,1709757040398,-500.0,0.00024657,2]
[317348945,1709757040406,-500.0,0.00024657,2]
[317348946,1709757040415,-500.0,0.00024657,2]
[317348947,1709757040424,-500.0,0.00024657,2]
[317348948,1709757040433,-2553.44,0.00024657,2]